Workbook

Sheet 円電流磁場
B1: 円電流の作る磁場
B2: 入力
B3: 電流 I (A) | C3: 円電流半径 r (mm) | D3: 横 x(mm) | E3: 高さ z(mm)
B4: 1 | C4: 1 | D4: 10 | E4: 8
C6: k2*k*I*den_ji_m(r,x,z) | D6: k2*k*I*xden_ji_m(r,x,z) | K6: 各単位系での値
B7: 単位系 | C7: 磁場B_z | D7: 磁場B_x | E7: 単位 | K7: 単位系 | L7: 変換定数k_2 | M7: k_2 式 | N7: 変換定数k | O7: k 式 | P7: 電流 I | Q7: 円電流半径 r | R7: 横 x | S7: 高さ z
B8: SI | C8: =L8*N8*P8*den_ji_m(Q8,R8,S8) -> 2.669599749e-08 | D8: =L8*N8*P8*xden_ji_m(Q8,R8,S8) -> 2.191191962e-07 | E8: テスラ (SI) | K8: SI | L8: 1 | N8: =10^-7 -> 1e-07 | P8: =B4 -> 1 | Q8: =C4/1000 -> 0.001 | R8: =D4/1000 -> 0.01 | S8: =E4/1000 -> 0.008
B9: 電磁 | C9: =L9*N9*P9*den_ji_m(Q9,R9,S9) -> 0.0002669599749 | D9: =L9*N9*P9*xden_ji_m(Q9,R9,S9) -> 0.002191191962 | E9: エールステッド | K9: 電磁 | L9: 1 | N9: 1 | P9: =B4/10 -> 0.1 | Q9: =C4/10 -> 0.1 | R9: =D4/10 -> 1 | S9: =E4/10 -> 0.8
B10: ガウス | C10: =L10*N10*P10*den_ji_m(Q10,R10,S10) -> 0.0002669599749 | D10: =L10*N10*P10*xden_ji_m(Q10,R10,S10) -> 0.002191191962 | E10: ガウス | K10: ガウス | L10: =2.9979*10^10 -> 29979000000 | N10: =1/(2.9979*10^10)^2 -> 1.112668302e-21 | P10: =B4*2.9979*10^9 -> 2997900000 | Q10: =C4/10 -> 0.1 | R10: =D4/10 -> 1 | S10: =E4/10 -> 0.8
B11: 静電 | C11: =L11*N11*P11*den_ji_m(Q11,R11,S11) -> 8.904899261e-15 | D11: =L11*N11*P11*xden_ji_m(Q11,R11,S11) -> 7.309089571e-14 | E11: 不明 | K11: 静電 | L11: 1 | N11: =1/(2.9979*10^10)^2 -> 1.112668302e-21 | P11: =B4*2.9979*10^9 -> 2997900000 | Q11: =C4/10 -> 0.1 | R11: =D4/10 -> 1 | S11: =E4/10 -> 0.8
B12: ヘビサイド・ローレンツ | C12: =L12*N12*P12*den_ji_m(Q12,R12,S12) -> 7.530801854e-05 | D12: =L12*N12*P12*xden_ji_m(Q12,R12,S12) -> 0.0006181238404 | E12: 不明 | K12: ヘビサイド・ローレンツ | L12: =2.9979*10^10 -> 29979000000 | N12: =1/(4*PI()*(2.9979*10^10)^2) -> 8.85433301e-23 | P12: =B4*2.9979*10^9*(4*PI())^0.5 -> 1.06272788e+10 | Q12: =C4/10 -> 0.1 | R12: =D4/10 -> 1 | S12: =E4/10 -> 0.8
B14: 計算式
B15: B_z= k2*k*I*den_ji_m(r,x,z)
B17: B_x= k2*k*I*xden_ji_m(r,x,z)

Sheet 円柱磁石の作る磁場
B1: 円柱磁石の作る磁場
B2: 入力
B3: 電流密度 J(A/m) | C3: 磁石半径 r1(mm) | D3: 磁石高さz1(mm) | E3: 横 x (mm) | F3: 高さ z(mm)
B4: 100000000 | C4: 10 | D4: 6 | E4: 10 | F4: 10
C6: k2*k*J*ji_ji_m(r1,z1,x,z) | D6: k2*k*J*soji_ji_m(r1,z1,x,z) | E6: k2*k*J*xji_ji_m(r1,z1,x,z) | F6: k2*k*J*xsoji_ji_m(r1,z1,x,z)
C7: 結果 | J7: 各単位系での値
B8: 単位系 | C8: 磁場B_z | D8: 双極子の方法でのB_z | E8: 磁場B_x | F8: 双極子の方法でのB_x | G8: 単位 | J8: 単位系 | K8: 変換定数k_2 | L8: k_2 式 | M8: 変換定数k | N8: k 式 | O8: 電流密度 J | P8: 磁石半径 r1 | Q8: 磁石高さ z1 | R8: 横 x | S8: 高さ z
B9: SI | C9: =K9*M9*O9*ji_ji_m(P9,Q9,R9,S9) -> 4.302027276 | D9: =K9*M9*O9*soji_ji_m(P9,Q9,R9,S9) -> 4.302181846 | E9: =K9*M9*O9*xji_ji_m(P9,Q9,R9,S9) -> 4.303110711 | F9: =K9*M9*O9*xsoji_ji_m(P9,Q9,R9,S9) -> 4.303728613 | G9: テスラ (SI) | J9: SI | K9: 1 | M9: =10^-7 -> 1e-07 | O9: =B4 -> 100000000 | P9: =C4/1000 -> 0.01 | Q9: =D4/1000 -> 0.006 | R9: =E4/1000 -> 0.01 | S9: =F4/1000 -> 0.01
B10: 電磁 | C10: =K10*M10*O10*ji_ji_m(P10,Q10,R10,S10) -> 43020.27276 | D10: =K10*M10*O10*soji_ji_m(P10,Q10,R10,S10) -> 43021.81846 | E10: =K10*M10*O10*xji_ji_m(P10,Q10,R10,S10) -> 43031.10711 | F10: =K10*M10*O10*xsoji_ji_m(P10,Q10,R10,S10) -> 43037.28613 | G10: エールステッド | J10: 電磁 | K10: 1 | M10: 1 | O10: =B4/10/100 -> 100000 | P10: =C4/10 -> 1 | Q10: =D4/10 -> 0.6 | R10: =E4/10 -> 1 | S10: =F4/10 -> 1
B11: ガウス | C11: =K11*M11*O11*ji_ji_m(P11,Q11,R11,S11) -> 43020.27276 | D11: =K11*M11*O11*soji_ji_m(P11,Q11,R11,S11) -> 43021.81846 | E11: =K11*M11*O11*xji_ji_m(P11,Q11,R11,S11) -> 43031.10711 | F11: =K11*M11*O11*xsoji_ji_m(P11,Q11,R11,S11) -> 43037.28613 | G11: ガウス | J11: ガウス | K11: =2.9979*10^10 -> 29979000000 | M11: =1/(2.9979*10^10)^2 -> 1.112668302e-21 | O11: =B4*2.9979*10^9/100 -> 2997900000000000 | P11: =C4/10 -> 1 | Q11: =D4/10 -> 0.6 | R11: =E4/10 -> 1 | S11: =F4/10 -> 1
B12: 静電 | C12: =K12*M12*O12*ji_ji_m(P12,Q12,R12,S12) -> 1.435013602e-06 | D12: =K12*M12*O12*soji_ji_m(P12,Q12,R12,S12) -> 1.435065161e-06 | E12: =K12*M12*O12*xji_ji_m(P12,Q12,R12,S12) -> 1.435375e-06 | F12: =K12*M12*O12*xsoji_ji_m(P12,Q12,R12,S12) -> 1.435581111e-06 | G12: 不明 | J12: 静電 | K12: 1 | M12: =1/(2.9979*10^10)^2 -> 1.112668302e-21 | O12: =B4*2.9979*10^9/100 -> 2997900000000000 | P12: =C4/10 -> 1 | Q12: =D4/10 -> 0.6 | R12: =E4/10 -> 1 | S12: =F4/10 -> 1
B13: ヘビサイド・ローレンツ | C13: =K13*M13*O13*ji_ji_m(P13,Q13,R13,S13) -> 12135.79489 | D13: =K13*M13*O13*soji_ji_m(P13,Q13,R13,S13) -> 12136.23092 | E13: =K13*M13*O13*xji_ji_m(P13,Q13,R13,S13) -> 12138.8512 | F13: =K13*M13*O13*xsoji_ji_m(P13,Q13,R13,S13) -> 12140.59427 | G13: 不明 | J13: ヘビサイド・ローレンツ | K13: =2.9979*10^10 -> 29979000000 | M13: =1/(4*PI()*(2.9979*10^10)^2) -> 8.85433301e-23 | O13: =B4*2.9979*10^9*(4*PI())^0.5/100 -> 1.06272788e+16 | P13: =C4/10 -> 1 | Q13: =D4/10 -> 0.6 | R13: =E4/10 -> 1 | S13: =F4/10 -> 1
B15: 電流による方法
B16: Bx=k2*k*J*ji_ji_m(r1,z1,x,z) Bz=k2*k*J*xji_ji_m(r1,z1,x,z)
B23: 磁荷双極子の方法
B24: Bz(out)は磁石の外の磁場、Bz(in)は磁石の中の磁場 Bx=k2*k*J*xsoji_ji_m(r1,z1,x,z) Bz=k2*k*xsoji_ji_m(r1,z1,x,z)

Sheet 円柱磁石の作る円内の磁束
B1: 円柱磁石の作る円内の磁束
B2: 入力
B3: 面電流密度 J (A/m) | C3: 磁石半径 r1 (mm) | D3: 磁石高さz1(mm) | E3: 磁束半径r2(mm) | F3: 磁石磁束距離 z (mm)
B4: 100000000 | C4: 10000 | D4: 6000 | E4: 1000 | F4: -3000
C6: k2*k*J*ji_ji_s(r1,z1,r2,z) | D6: k2*k*J*soji_ji_s(r1,z1,r2,z)
C7: 結果 | H7: 各単位系での値
B8: 単位系 | C8: 磁束Φ | D8: 双極子の方法 | E8: 単位 | H8: 変換定数k_2 | I8: k_2 式 | J8: 変換定数k | K8: k 式 | L8: 面電流密度 J | M8: 磁石半径 r1 | N8: 磁石高さ z1 | O8: 磁束半径 r2 | P8: 磁石磁束距離 z
B9: SI | C9: =H9*J9*L9*ji_ji_s(M9,N9,O9,P9) -> 113.7999255 | D9: =H9*J9*L9*soji_ji_s(M9,N9,O9,P9) -> 113.7243308 | E9: ウェーバー | H9: 1 | J9: =10^-7 -> 1e-07 | L9: =B4 -> 100000000 | M9: =C4/1000 -> 10 | N9: =D4/1000 -> 6 | O9: =E4/1000 -> 1 | P9: =F4/1000 -> -3
B10: 電磁 | C10: =H10*J10*L10*ji_ji_s(M10,N10,O10,P10) -> 1.137999255e+10 | D10: =H10*J10*L10*soji_ji_s(M10,N10,O10,P10) -> 1.137243308e+10 | E10: 不明 | H10: 1 | J10: 1 | L10: =B4/10/100 -> 100000 | M10: =C4/10 -> 1000 | N10: =D4/10 -> 600 | O10: =E4/10 -> 100 | P10: =F4/10 -> -300
B11: ガウス | C11: =H11*J11*L11*ji_ji_s(M11,N11,O11,P11) -> 1.137999255e+10 | D11: =H11*J11*L11*soji_ji_s(M11,N11,O11,P11) -> 1.137243308e+10 | E11: 不明 | H11: =2.9979*10^10 -> 29979000000 | J11: =1/(2.9979*10^10)^2 -> 1.112668302e-21 | L11: =B4*2.9979*10^9/100 -> 2997900000000000 | M11: =C4/10 -> 1000 | N11: =D4/10 -> 600 | O11: =E4/10 -> 100 | P11: =F4/10 -> -300
B12: 静電 | C12: =H12*J12*L12*ji_ji_s(M12,N12,O12,P12) -> 0.379598804 | D12: =H12*J12*L12*soji_ji_s(M12,N12,O12,P12) -> 0.3793466455 | E12: 不明 | H12: 1 | J12: =1/(2.9979*10^10)^2 -> 1.112668302e-21 | L12: =B4*2.9979*10^9/100 -> 2997900000000000 | M12: =C4/10 -> 1000 | N12: =D4/10 -> 600 | O12: =E4/10 -> 100 | P12: =F4/10 -> -300
B13: ヘビサイド・ローレンツ | C13: =H13*J13*L13*ji_ji_s(M13,N13,O13,P13) -> 3210236628 | D13: =H13*J13*L13*soji_ji_s(M13,N13,O13,P13) -> 3208104143 | E13: 不明 | H13: =2.9979*10^10 -> 29979000000 | J13: =1/(4*PI()*(2.9979*10^10)^2) -> 8.85433301e-23 | L13: =B4*2.9979*10^9*(4*PI())^0.5/100 -> 1.06272788e+16 | M13: =C4/10 -> 1000 | N13: =D4/10 -> 600 | O13: =E4/10 -> 100 | P13: =F4/10 -> -300
B15: 電流による方法 | C15: Φ=k2*k*J*ji_ji_s(r1,z1,r2,z)
B18: 磁荷双極子の方法 | C18: Φ=k2*k*J*soji_ji_s(r1,z1,r2,z)

Sheet 円柱磁石間の力
B1: 円柱磁石間の力
B2: 入力
B3: 磁石１ | E3: 磁石２
B4: 面電流密度 J 1(A/m) | C4: 磁石半径 r1 (mm) | D4: 磁石高さz1(mm) | E4: 面電流密度 J 2(A/m) | F4: 磁石半径r2(mm) | G4: 磁石高さz2(mm) | H4: 磁石間距離z(mm)
B5: =4.5*10^5 -> 450000 | C5: 6.5 | D5: 2 | E5: =3*10^5 -> 300000 | F5: 8 | G5: 4 | H5: 30
C6: k*J1*J2*ji_tikara(r1,z1,r2,z2,z) | D6: k*J1*J2*ji_tikara2(r1,z1,r2,z2,z) | E6: k*J1*J2*soji_tikara2(r1,z1,r2,z2,z)
C7: 結果 | H7: 各単位系での値
B8: 単位系 | C8: 引力 | D8: 別法 | E8: 双極子の方法 | F8: 単位 | H8: 単位系 | I8: 変換定数k_2 | J8: k_2 式 | K8: 変換定数k | L8: k 式 | M8: 面電流密度 J1 | N8: 磁石半径 r1 | O8: 磁石高さ z1 | P8: 面電流密度 J2 | Q8: 磁束半径 r2 | R8: 磁石高さ z2 | S8: 磁石間距離 z
B9: SI | C9: =K9*M9*P9*ji_tikara(N9,O9,Q9,R9,S9) -> 0.01179255434 | D9: =K9*M9*P9*ji_tikara2(N9,O9,Q9,R9,S9) -> 0.01179225451 | E9: =K9*M9*P9*soji_tikara(N9,O9,Q9,R9,S9) -> 0.0117927736 | F9: N | H9: SI | I9: 1 | K9: =10^-7 -> 1e-07 | M9: =B5 -> 450000 | N9: =C5/1000 -> 0.0065 | O9: =D5/1000 -> 0.002 | P9: =E5 -> 300000 | Q9: =F5/1000 -> 0.008 | R9: =G5/1000 -> 0.004 | S9: =H5/1000 -> 0.03
B10: 電磁 | C10: =K10*M10*P10*ji_tikara(N10,O10,Q10,R10,S10) -> 1179.255434 | D10: =K10*M10*P10*ji_tikara2(N10,O10,Q10,R10,S10) -> 1179.225451 | E10: =K10*M10*P10*soji_tikara(N10,O10,Q10,R10,S10) -> 1179.27736 | F10: dyn | H10: 電磁 | I10: 1 | K10: 1 | M10: =B5/10/100 -> 450 | N10: =C5/10 -> 0.65 | O10: =D5/10 -> 0.2 | P10: =E5/10/100 -> 300 | Q10: =F5/10 -> 0.8 | R10: =G5/10 -> 0.4 | S10: =H5/10 -> 3
B11: ガウス | C11: =K11*M11*P11*ji_tikara(N11,O11,Q11,R11,S11) -> 1179.255434 | D11: =K11*M11*P11*ji_tikara2(N11,O11,Q11,R11,S11) -> 1179.225451 | E11: =K11*M11*P11*soji_tikara(N11,O11,Q11,R11,S11) -> 1179.27736 | F11: dyn | H11: ガウス | I11: =2.9979*10^10 -> 29979000000 | K11: =1/(2.9979*10^10)^2 -> 1.112668302e-21 | M11: =B5*2.9979*10^9/100 -> 13490550000000 | N11: =C5/10 -> 0.65 | O11: =D5/10 -> 0.2 | P11: =E5*2.9979*10^9/100 -> 8993700000000 | Q11: =F5/10 -> 0.8 | R11: =G5/10 -> 0.4 | S11: =H5/10 -> 3
B12: 静電 | C12: =K12*M12*P12*ji_tikara(N12,O12,Q12,R12,S12) -> 1179.255434 | D12: =K12*M12*P12*ji_tikara2(N12,O12,Q12,R12,S12) -> 1179.225451 | E12: =K12*M12*P12*soji_tikara(N12,O12,Q12,R12,S12) -> 1179.27736 | F12: dyn | H12: 静電 | I12: 1 | K12: =1/(2.9979*10^10)^2 -> 1.112668302e-21 | M12: =B5*2.9979*10^9/100 -> 13490550000000 | N12: =C5/10 -> 0.65 | O12: =D5/10 -> 0.2 | P12: =E5*2.9979*10^9/100 -> 8993700000000 | Q12: =F5/10 -> 0.8 | R12: =G5/10 -> 0.4 | S12: =H5/10 -> 3
B13: ヘビサイド・ローレンツ | C13: =K13*M13*P13*ji_tikara(N13,O13,Q13,R13,S13) -> 1179.255434 | D13: =K13*M13*P13*ji_tikara2(N13,O13,Q13,R13,S13) -> 1179.225451 | E13: =K13*M13*P13*soji_tikara(N13,O13,Q13,R13,S13) -> 1179.27736 | F13: dyn | H13: ヘビサイド・ローレンツ | I13: =2.9979*10^10 -> 29979000000 | K13: =1/(4*PI()*(2.9979*10^10)^2) -> 8.85433301e-23 | M13: =B5*2.9979*10^9*(4*PI())^0.5/100 -> 4.78227546e+13 | N13: =C5/10 -> 0.65 | O13: =D5/10 -> 0.2 | P13: =E5*2.9979*10^9*(4*PI())^0.5/100 -> 3.18818364e+13 | Q13: =F5/10 -> 0.8 | R13: =G5/10 -> 0.4 | S13: =H5/10 -> 3
B15: 電流法と磁気モーメント法 | C15: k*J1*J2*ji_tikara(r1,z1,r2,z2,z)
B20: 電流直接法 | C20: k*J1*J2*ji_tikara2(r1,z1,r2,z2,z)
B23: 磁荷双極子の方法 | C23: k*J1*J2*soji_tikara2(r1,z1,r2,z2,z)

Sheet 磁石のコイル磁束
B1: 磁石のコイル磁束
B2: 入力
B3: 面電流密度 J (A/m) | C3: 巻密度 n (1/m) | D3: 磁石半径 r1(mm) | E3: 磁石の高さ z1(mm) | F3: コイル半径 r2(mm) | G3: コイルの高さ z2(mm) | H3: 磁石とコイルの距離 z(mm)
B4: 710000 | C4: =90/0.015 -> 6000 | D4: 6.5 | E4: 2 | F4: 8 | G4: 15 | H4: 12
C6: k2*k*J*n*ji_ko_s(r1,z1,r2,z2,z) | D6: k2*k*J*n*ji_ko_s2(r1,z1,r2,z2,z)
C7: 結果 | G7: 各単位系での値
B8: 単位系 | C8: 磁束 ψ | D8: 確認愚直法 | E8: 単位 | G8: 単位系 | H8: 変換定数k_2 | I8: k_2 式 | J8: 変換定数k | K8: k 式 | L8: 面電流密度 J | M8: 巻密度 n | N8: 磁石半径 r1 | O8: 磁石の高さ z1 | P8: コイル半径 r2 | Q8: コイルの高さ z2 | R8: 磁石とコイルの距離 z
B9: SI | C9: =H9*J9*L9*M9*ji_ko_s(N9,O9,P9,Q9,R9) -> 6.878505402e-05 | D9: =H9*J9*L9*M9*ji_ko_s2(N9,O9,P9,Q9,R9) -> 6.879037815e-05 | G9: SI | H9: 1 | J9: =10^-7 -> 1e-07 | L9: =B4 -> 710000 | M9: =C4 -> 6000 | N9: =D4/1000 -> 0.0065 | O9: =E4/1000 -> 0.002 | P9: =F4/1000 -> 0.008 | Q9: =G4/1000 -> 0.015 | R9: =H4/1000 -> 0.012
B10: 電磁 | C10: =H10*J10*L10*M10*ji_ko_s(N10,O10,P10,Q10,R10) -> 6878.505402 | D10: =H10*J10*L10*M10*ji_ko_s2(N10,O10,P10,Q10,R10) -> 6879.037815 | G10: 電磁 | H10: 1 | J10: 1 | L10: =B4*0.1/100 -> 710 | M10: =C4/100 -> 60 | N10: =D4/10 -> 0.65 | O10: =E4/10 -> 0.2 | P10: =F4/10 -> 0.8 | Q10: =G4/10 -> 1.5 | R10: =H4/10 -> 1.2
B11: ガウス | C11: =H11*J11*L11*M11*ji_ko_s(N11,O11,P11,Q11,R11) -> 6878.505402 | D11: =H11*J11*L11*M11*ji_ko_s2(N11,O11,P11,Q11,R11) -> 6879.037815 | G11: ガウス | H11: =2.9979*10^10 -> 29979000000 | J11: =1/(2.9979*10^10)^2 -> 1.112668302e-21 | L11: =B4*2.9979*10^9/100 -> 21285090000000 | M11: =C4/100 -> 60 | N11: =D4/10 -> 0.65 | O11: =E4/10 -> 0.2 | P11: =F4/10 -> 0.8 | Q11: =G4/10 -> 1.5 | R11: =H4/10 -> 1.2
B12: 静電 | C12: =H12*J12*L12*M12*ji_ko_s(N12,O12,P12,Q12,R12) -> 2.294441243e-07 | D12: =H12*J12*L12*M12*ji_ko_s2(N12,O12,P12,Q12,R12) -> 2.294618838e-07 | G12: 静電 | H12: 1 | J12: =1/(2.9979*10^10)^2 -> 1.112668302e-21 | L12: =B4*2.9979*10^9/100 -> 21285090000000 | M12: =C4/100 -> 60 | N12: =D4/10 -> 0.65 | O12: =E4/10 -> 0.2 | P12: =F4/10 -> 0.8 | Q12: =G4/10 -> 1.5 | R12: =H4/10 -> 1.2
B13: ヘビサイド・ローレンツ | C13: =H13*J13*L13*M13*ji_ko_s(N13,O13,P13,Q13,R13) -> 1940.390549 | D13: =H13*J13*L13*M13*ji_ko_s2(N13,O13,P13,Q13,R13) -> 1940.54074 | G13: ヘビサイド・ローレンツ | H13: =2.9979*10^10 -> 29979000000 | J13: =1/(4*PI()*(2.9979*10^10)^2) -> 8.85433301e-23 | L13: =B4*2.9979*10^9*(4*PI())^0.5/100 -> 7.545367947e+13 | M13: =C4/100 -> 60 | N13: =D4/10 -> 0.65 | O13: =E4/10 -> 0.2 | P13: =F4/10 -> 0.8 | Q13: =G4/10 -> 1.5 | R13: =H4/10 -> 1.2
I14: .
B15: 電流法 | C15: k2*k*J*n*ji_ko_s(r1,z1,r2,z2,z)

Sheet 磁石間の力から電流密度を求める
B1: 同一の円柱磁石間の力から面電流密度を求める
B2: 入力 | F2: 結果 | H2: 変換定数k
B3: 磁石半径 r (mm) | C3: 磁石高さz(mm) | D3: 磁石間の距離h(mm) | E3: 磁石間の力F(g重) | F3: 面電流密度J(A/m) | H3: =10^-7 -> 1e-07
B4: 6.5 | C4: 2 | D4: 4.4 | E4: 160 | F4: =(E6/(H3*ji_tikara(B6,C6,B6,C6,D6)))^0.5 -> 716409.6365
A6: SI単位系 | B6: =B4/1000 -> 0.0065 | C6: =C4/1000 -> 0.002 | D6: =D4/1000 -> 0.0044 | E6: =E4/1000*9.8 -> 1.568
